bitfinex/quotes_ETHUSD_20250214
["timestamp","ask_amount","ask_price","bid_price","bid_amount"]
[1739561745829,3.64757,2741.6,2741.2,35.0]
[1739561746147,3.64727,2741.8,2741.2,35.0]
[1739561746851,3.6472,2741.9,2741.3,0.5152]
[1739561747353,3.6472,2741.9,2741.7,35.0]
[1739561747554,3.64735,2741.8,2741.7,35.0]
[1739561747948,4.47855,2741.8,2741.7,35.0]
[1739561748539,4.55577725,2741.8,2741.7,35.0]
[1739561750623,4.55577725,2741.8,2740.5,3.0]
[1739561750624,3.64763,2741.5,2740.5,0.5152]
[1739561750820,3.64883,2740.6,2740.5,0.5152]
[1739561751062,0.07672742,2740.6,2740.5,0.5152]
[1739561751220,3.6487,2740.7,2740.5,0.5152]
[1739561751621,3.72551866,2740.6,2740.5,0.5152]
[1739561751844,7.2984,2740.4,2739.7,0.5152]
[1739561752065,3.72578068,2740.3,2739.7,3.89822686]
[1739561752226,0.07653068,2740.3,2739.7,3.89822686]
[1739561752422,0.07653068,2740.3,2739.8,0.5152]
[1739561752625,3.64897,2740.5,2740.0,0.5152]
[1739561752864,3.64917,2740.4,2740.0,0.5152]
[1739561753022,7.37493335,2740.4,2740.0,0.5152]
[1739561753624,3.72575335,2740.4,2740.0,0.5152]
[1739561754045,0.07658335,2740.4,2740.0,0.5152]
[1739561754456,3.72569335,2740.4,2740.0,0.5152]
[1739561755957,3.64926,2740.3,2740.0,0.5152]
[1739561756155,0.07658335,2740.4,2740.0,0.5152]
[1739561756366,7.29838,2740.4,2740.0,0.5152]
[1739561756560,3.64919,2740.4,2740.0,0.5152]
[1739561756876,0.07635237,2740.3,2740.0,0.5152]
[1739561758548,3.72558237,2740.3,2740.0,0.5152]
[1739561758742,3.72558237,2740.3,2739.7,0.38302686]
[1739561758743,0.07635237,2740.3,2739.7,0.5152]
[1739561758938,3.65029,2739.6,2739.0,0.5152]
[1739561759145,3.65004,2739.7,2739.2,0.74783674]
[1739561759377,0.07576126,2739.5,2739.2,0.74783674]
[1739561759581,0.07587892,2739.6,2739.2,0.74783674]
[1739561759841,3.65004,2739.7,2739.2,0.74783674]
[1739561760041,0.07555717,2739.6,2739.2,0.74783674]
[1739561760242,0.07555717,2739.6,2739.1,0.5152]
[1739561760444,0.07555717,2739.6,2739.3,0.5152]
[1739561760730,0.7718,2740.6,2739.5,0.5152]
[1739561760849,3.64958,2740.1,2739.5,0.5152]
[1739561761053,7.29915,2740.1,2739.5,0.5152]
[1739561761252,3.64957,2740.1,2739.5,0.5152]
[1739561761454,3.64957,2740.1,2739.6,0.416562]
[1739561761751,3.64972,2740.0,2739.6,0.416562]
[1739561761961,3.64972,2740.0,2739.5,0.5152]
[1739561761962,3.64976,2739.9,2739.5,0.5152]
[1739561762163,3.65016,2739.6,2739.5,0.5152]
[1739561762384,3.65016,2739.6,2739.2,0.5152]
[1739561763450,0.07255007,2739.5,2739.2,0.5152]
[1739561764408,0.07255007,2739.5,2739.4,0.5152]
[1739561764694,3.65,2739.8,2739.4,0.5152]
[1739561764900,10.45449979,2740.8,2739.4,0.5152]
[1739561764901,0.072488,2739.5,2739.4,0.5152]
[1739561765064,3.65,2739.8,2739.4,0.5152]
[1739561765268,0.07259339,2739.7,2739.4,0.5152]
[1739561765502,3.64972,2740.0,2739.4,0.5152]
[1739561765680,0.0725407,2739.6,2739.5,0.416574]
[1739561765882,3.64951,2740.1,2739.5,0.416574]
[1739561766085,3.6493,2740.3,2739.6,0.03649453]
[1739561766291,3.64937,2740.2,2739.7,0.5152]
[1739561766465,3.7718,2740.8,2739.7,0.5152]
[1739561766466,3.64917,2740.4,2739.7,0.5152]
[1739561766885,3.64938,2740.2,2739.7,0.5152]
[1739561767259,0.07281576,2740.1,2739.7,0.5152]
[1739561767460,3.64925,2740.3,2739.8,0.416535]
[1739561767784,0.07294211,2740.2,2739.8,0.416535]
[1739561768150,3.64925,2740.3,2739.8,0.416535]
[1739561768373,0.07288944,2740.1,2739.8,0.416535]
[1739561768603,0.07294211,2740.2,2739.9,0.4581745]
[1739561768763,3.64919,2740.4,2740.0,0.5152]
[1739561769188,3.64926,2740.3,2740.0,0.5152]
[1739561769466,3.64919,2740.4,2740.0,0.5152]
[1739561769969,3.6493,2740.3,2740.0,0.5152]
[1739561770174,7.29841,2740.4,2740.0,0.5152]
[1739561770400,3.64919,2740.4,2740.0,0.5152]
[1739561770909,0.07299478,2740.3,2740.1,0.03648899]
[1739561771111,0.07299478,2740.3,2740.2,0.5152]
[1739561771264,0.07299478,2740.3,2740.2,4.89327483]
[1739561772090,0.07299478,2740.3,2740.2,1.24391483]
[1739561772576,0.07299478,2740.3,2740.2,0.5152]
[1739561774370,0.14635023,2740.3,2740.2,0.5152]
[1739561774572,0.07299478,2740.3,2740.2,0.5152]
[1739561775101,0.14635023,2740.3,2740.2,0.5152]
[1739561775283,0.07299478,2740.3,2740.2,0.5152]
[1739561775483,0.14631534,2740.3,2740.2,4.61752801]
[1739561775698,3.64759,2741.6,2740.3,4.16443]
[1739561775922,0.7523,2741.8,2740.9,0.5152]
[1739561776098,0.7523,2741.8,2740.1,2.0]
[1739561776099,0.7523,2741.3,2739.7,3.27104274]
[1739561776298,3.64855,2740.9,2740.3,0.5152]
[1739561776836,3.7068032,2740.8,2740.3,0.5152]
[1739561776994,3.7068032,2740.8,2740.3,0.931669]
[1739561777200,0.0582132,2740.8,2740.3,0.931669]
[1739561777436,0.0582132,2740.8,2740.3,0.5152]
[1739561777638,3.64833,2741.0,2740.3,0.5152]
[1739561777809,0.05817611,2740.7,2740.3,0.5152]
[1739561778145,0.05812346,2740.6,2740.3,0.5152]
[1739561778508,3.64818,2741.1,2740.3,0.5152]
[1739561778849,0.7523,2741.3,2740.4,3.68557144]
[1739561778850,0.05802805,2740.5,2740.4,3.68557144]
[1739561779004,3.64775,2741.5,2740.7,3.64865]
[1739561779204,4.3998,2741.6,2740.9,3.64843]
[1739561779406,3.64746,2741.7,2740.9,3.64843]
[1739561779407,0.05850183,2741.4,2741.0,3.6847466]
[1739561779642,0.05855445,2741.5,2741.0,3.6847466]
[1739561779949,3.64746,2741.7,2741.0,3.6847466]
[1739561779950,0.05856786,2741.4,2741.0,3.6847466]
[1739561780459,3.64752,2741.6,2740.9,4.43330166]
[1739561780620,0.05851524,2741.3,2740.9,0.78487166]
[1739561780807,3.64777,2741.4,2740.8,0.5152]
[1739561781006,0.05846261,2741.2,2740.8,0.5152]
[1739561781254,0.05851524,2741.3,2740.9,3.64837]
[1739561781559,3.64752,2741.6,2740.9,3.64837]
[1739561781701,0.05858693,2741.2,2740.9,3.64837]
[1739561781902,3.64752,2741.6,2741.0,0.416357]
[1739561782150,0.05853429,2741.1,2741.0,0.416357]
[1739561782310,3.64752,2741.6,2741.0,0.416357]
[1739561782512,0.05853429,2741.1,2741.0,0.416357]
[1739561782736,3.64752,2741.6,2741.0,0.416357]
[1739561782938,0.05853429,2741.1,2741.0,0.416357]
[1739561783241,3.64752,2741.6,2741.0,0.416357]
[1739561783418,0.05853429,2741.1,2741.0,0.416357]
[1739561783619,3.64731,2741.8,2741.0,0.416357]
[1739561783822,0.05853429,2741.1,2741.0,4.064607]
[1739561784333,7.39946,2741.9,2741.1,3.64809]
[1739561784648,3.64716,2741.9,2741.2,7.65907141]
[1739561784844,3.64684,2742.1,2741.3,3.64777]
[1739561785158,3.64716,2741.9,2741.3,3.6479]
[1739561785312,3.64716,2741.9,2741.2,7.65915141]
[1739561785510,0.05684264,2741.8,2741.3,1.13072414]
[1739561785750,3.70413264,2741.8,2741.2,0.92529209]
[1739561786265,0.05684264,2741.8,2740.6,3.08583932]
[1739561786413,3.64802,2741.3,2740.7,0.5152]
[1739561786610,0.8074,2741.7,2740.7,0.5152]
[1739561786611,3.64839,2741.0,2740.7,0.5152]
[1739561786940,3.64839,2741.0,2740.4,0.73346914]
[1739561786941,3.70508481,2740.9,2740.4,1.24866914]
[1739561787310,0.05664481,2740.9,2740.4,1.24866914]
[1739561787852,3.64833,2741.0,2740.4,1.24866914]
[1739561788013,0.05645233,2740.8,2740.4,1.24866914]
[1739561788213,0.05645233,2740.8,2740.1,0.5152]
[1739561788214,3.6489,2740.6,2740.1,0.5152]
[1739561788413,3.64917,2740.4,2740.1,0.5152]
[1739561788608,3.64917,2740.4,2739.7,3.08583932]
[1739561788609,3.70532437,2740.5,2739.8,0.5152]
[1739561788836,0.05618904,2740.3,2739.9,0.72509693]
[1739561789040,0.05614457,2740.4,2739.9,0.72509693]
[1739561789223,3.64876,2740.7,2739.9,0.72509693]
[1739561789224,0.05603147,2740.2,2739.9,0.72509693]
[1739561789424,0.05608414,2740.3,2740.1,35.0]
[1739561789720,3.64904,2740.5,2740.1,35.0]
[1739561789918,3.64882,2740.7,2740.1,35.0]
[1739561790115,3.64884,2740.6,2740.1,38.62141156]
[1739561790316,4.45607,2740.8,2740.1,38.62141156]
[1739561790515,4.45607,2740.8,2740.2,0.03648791]
[1739561790734,3.64871,2740.7,2740.1,38.62141156]
[1739561790947,3.64907,2740.5,2740.1,38.62141156]
[1739561791426,3.64907,2740.5,2740.1,3.62141156]
[1739561791762,3.64907,2740.5,2739.9,0.72509693]
[1739561791961,0.8074,2740.3,2740.2,35.0]
[1739561792259,4.45668,2740.3,2740.2,35.0]
[1739561792446,4.51224738,2740.3,2740.2,35.0]
[1739561796866,5.06224738,2740.3,2740.2,35.0]
[1739561799683,5.06224738,2740.3,2739.2,0.5152]
[1739561799833,3.65003,2739.7,2738.9,0.5152]
[1739561800033,3.65003,2739.7,2738.4,3.08583932]
[1739561800034,3.65094,2739.1,2738.5,0.5152]
[1739561800238,3.65094,2739.1,2739.0,35.0]
[1739561800957,3.70531412,2739.1,2739.0,35.0]
[1739561801371,0.05448412,2739.1,2739.0,35.0]
[1739561801576,0.05448412,2739.1,2739.0,44.41054347]
[1739561801772,0.7616,2740.1,2739.0,44.41054347]
[1739561801938,0.7616,2740.1,2739.0,9.41054347]
[1739561801939,3.65004,2739.7,2739.0,9.41054347]
[1739561802574,4.41113,2740.1,2739.6,35.0]
[1739561802869,3.64953,2740.1,2739.7,3.55152]
[1739561803076,3.64906,2740.5,2739.7,3.64995]
[1739561803250,4.41037,2740.7,2740.1,35.0]
[1739561803468,0.7616,2740.7,2740.1,35.0]
[1739561803679,3.64911,2740.4,2740.1,35.0]
[1739561804263,0.7616,2740.7,2740.1,35.0]
[1739561804264,3.64936,2740.2,2740.1,35.0]
[1739561804475,0.04919186,2740.3,2740.1,35.0]
[1739561804674,0.04811842,2740.2,2740.1,35.0]
[1739561804862,3.64912,2740.4,2740.1,35.0]
[1739561805077,3.64936,2740.2,2740.1,35.0]
[1739561805391,3.69747842,2740.2,2740.1,35.0]
[1739561805690,0.04811842,2740.2,2740.1,35.0]
[1739561805902,3.64912,2740.4,2740.1,35.0]
[1739561806076,0.04817109,2740.3,2740.1,35.0]
[1739561807264,4.45596,2740.2,2740.1,35.0]
[1739561807468,0.04816997,2740.2,2740.1,35.0]
[1739561807698,4.4556,2740.5,2740.1,35.83850557]
[1739561807894,0.04817251,2740.4,2740.1,35.83850557]
[1739561809105,3.64826,2741.1,2740.2,0.55168731]
[1739561809322,0.1008,2741.2,2740.7,0.5152]
[1739561809465,3.74884,2741.2,2740.8,0.45287299]
[1739561809819,3.64822,2741.1,2740.8,35.0]
[1739561810179,3.64843,2740.9,2740.8,35.0]
[1739561810999,4.455,2741.0,2740.8,35.0]
[1739561811210,3.6484,2741.0,2740.8,35.0]
[1739561811414,3.64838,2741.0,2740.8,35.0]
[1739561811719,0.04761748,2740.9,2740.8,35.0]
[1739561812064,3.64817,2741.1,2740.8,35.0]
[1739561812269,3.69576978,2741.0,2740.8,35.0]
[1739561812469,7.34415978,2741.0,2740.8,35.0]
[1739561812769,3.69571978,2741.0,2740.8,35.0]
[1739561813129,3.64843,2740.9,2740.8,35.0]
[1739561813450,3.64939,2740.2,2739.7,0.5152]
[1739561813902,0.04707995,2740.1,2739.8,35.0]
[1739561814105,3.64939,2740.2,2739.8,35.0]
[1739561814281,3.64943,2740.2,2739.8,38.55152]
[1739561814801,3.64887,2740.6,2739.8,38.55152]
[1739561814981,3.64865,2740.8,2740.0,0.5152]
[1739561815181,0.04687916,2740.5,2740.1,3.6494]
[1739561815378,3.64873,2740.7,2740.1,3.64938]
[1739561815582,0.04683817,2740.4,2740.2,35.0]
[1739561815784,3.64866,2740.8,2740.2,35.0]
[1739561816180,3.64893,2740.6,2740.2,35.0]
[1739561816389,3.64905,2740.5,2740.2,35.0]
[1739561816593,3.69608374,2740.5,2740.2,35.0]
[1739561817326,0.04703374,2740.5,2740.2,35.0]
[1739561817511,3.69601374,2740.5,2740.2,35.0]
[1739561817714,3.64918,2740.4,2740.2,35.0]
[1739561818019,0.04699061,2740.3,2740.2,35.0]
[1739561818427,3.64898,2740.5,2740.2,38.55152]
[1739561818622,0.04699061,2740.3,2740.2,38.55152]
[1739561818834,3.64898,2740.5,2740.2,38.55152]
[1739561818994,0.04694396,2740.3,2740.2,38.55152]
[1739561819324,3.64892,2740.6,2740.2,38.55152]
[1739561819519,3.6487,2740.7,2740.3,0.0364906]
[1739561819689,3.6487,2740.7,2740.3,2.94256862]
[1739561819886,7.29733,2740.8,2740.3,2.94256862]
[1739561820222,0.1008,2741.2,2740.6,3.64872]
[1739561820388,3.74887,2741.2,2740.7,0.40135188]
[1739561820588,3.64823,2741.1,2740.5,3.64894]
[1739561820969,3.64823,2741.1,2740.9,35.0]
[1739561821290,3.74887,2741.2,2740.9,35.0]
[1739561821492,0.1008,2741.2,2740.9,38.14746522]
[1739561822404,0.1008,2741.2,2740.9,3.14746522]
[1739561822721,0.04576393,2741.1,2740.9,0.5152]
[1739561823322,0.04576393,2741.1,2741.0,35.0]
[1739561823517,0.1008,2741.2,2741.0,35.0]
[1739561825249,0.1008,2741.2,2741.0,3.64822]
[1739561825395,0.1008,2741.2,2741.1,3.64817]
[1739561825596,0.1008,2741.2,2741.1,4.94818347]
[1739561825822,0.1008,2741.2,2741.1,36.30001347]
[1739561826003,0.1008,2741.2,2741.1,39.94818347]
[1739561829518,0.04513126,2741.1,2741.0,35.0]
[1739561830032,0.04513126,2741.1,2741.0,38.6483]
[1739561830233,0.1008,2741.2,2741.1,3.64817]
[1739561830533,0.1008,2741.2,2741.0,7.78817439]
[1739561830829,0.1008,2741.2,2741.1,38.68464376]
[1739561831034,0.1008,2741.2,2741.1,38.64817]
[1739561831733,0.1008,2741.2,2741.1,35.0]
[1739561831937,0.1008,2741.2,2741.1,38.64817]
[1739561832142,4.40859,2743.1,2741.3,0.5152]
[1739561832361,0.763,2743.1,2742.4,7.50914789]
[1739561832508,3.64532,2743.3,2742.9,3.86281789]
[1739561832703,0.763,2743.4,2743.0,35.03645508]
[1739561832704,4.40812,2743.4,2743.0,35.03645508]
[1739561833013,0.763,2743.4,2743.0,35.0]
[1739561833220,0.03807648,2743.3,2743.0,35.0]
[1739561834345,3.64551,2743.1,2743.0,35.0]
[1739561835207,3.68332226,2743.1,2743.0,35.0]
[1739561836908,3.64618,2742.6,2742.0,4.37801789]
[1739561837240,3.64659,2742.3,2742.1,0.43780179]
[1739561837409,8.09322684,2742.5,2742.2,35.0]
[1739561837606,8.05573,2742.5,2742.2,35.0]
[1739561837810,3.64651,2742.4,2742.2,35.0]
[1739561838120,4.40932,2742.5,2742.2,35.0]
[1739561838308,3.64652,2742.4,2742.2,35.0]
[1739561838508,0.763,2742.5,2742.2,35.0]
[1739561838745,3.64623,2742.6,2742.2,35.0]
[1739561838945,0.763,2743.1,2742.4,0.5152]
[1739561839242,0.763,2743.1,2742.4,4.16156]
[1739561839445,7.29094,2743.2,2742.4,4.16156]
[1739561839645,3.64546,2743.2,2742.6,35.0]
[1739561839849,7.29142,2743.0,2742.6,35.0]
[1739561840048,3.64568,2743.0,2742.6,35.0]
[1739561840213,7.29141,2743.0,2742.6,35.0]
[1739561840410,0.03770713,2742.9,2742.6,35.0]
[1739561840835,3.64594,2742.8,2742.6,35.0]
[1739561841048,3.64604,2742.7,2742.6,35.0]
[1739561841355,7.23413504,2742.7,2742.6,35.0]
[1739561841653,7.99713504,2742.7,2742.6,35.0]
[1739561842017,4.44713504,2742.7,2742.6,35.0]
[1739561842457,0.03809504,2742.7,2742.6,35.0]
[1739561842853,4.45745,2743.0,2742.6,35.0]
[1739561843439,0.83333333,2743.4,2742.8,4.37801789]
[1739561843622,0.83333333,2743.4,2743.2,0.5152]
[1739561843951,0.83333333,2743.4,2743.3,35.0]
[1739561844143,0.83333333,2743.4,2743.3,42.27000439]
[1739561844651,0.83333333,2743.4,2743.3,45.78520439]
[1739561844955,0.83333333,2743.4,2743.3,49.53423439]
[1739561845161,4.45506,2744.8,2744.0,4.15945]
[1739561845454,3.64348,2744.7,2744.0,4.15945]
[1739561845618,3.64348,2744.7,2744.0,0.5152]
[1739561845818,4.47687333,2744.6,2744.1,35.0]
[1739561846134,0.03763221,2744.5,2744.1,35.0]
[1739561846519,0.83333333,2744.6,2744.1,35.0]
[1739561847051,4.47690333,2744.6,2744.1,35.0]
[1739561847244,3.64367,2744.5,2744.1,35.0]
[1739561847465,3.64404,2744.3,2744.1,35.0]
[1739561847838,3.64381,2744.4,2744.1,35.0]
[1739561848059,0.8118,2744.8,2744.1,35.0]
[1739561848258,3.64361,2744.6,2744.1,35.0]
[1739561849275,4.45509,2744.8,2744.2,0.0364352]
[1739561849455,3.6435,2744.7,2744.1,37.90986762]
[1739561849769,3.6436,2744.6,2744.1,37.90986762]
[1739561849972,3.6436,2744.6,2744.1,35.0]
[1739561850173,3.64329,2744.8,2744.1,38.64406]
[1739561850378,3.64329,2744.8,2744.1,35.0]
[1739561850538,3.64361,2744.6,2744.1,35.0]
[1739561850871,3.6436,2744.6,2744.1,35.0]
[1739561851467,3.64372,2744.5,2744.1,35.0]
[1739561852075,3.6439,2744.4,2744.1,35.0]
[1739561852280,0.55,2744.5,2744.1,35.0]
[1739561852484,3.64404,2744.2,2744.1,35.0]
[1739561852667,3.64403,2744.3,2744.1,35.0]
[1739561853341,3.64341,2744.7,2744.1,35.0]
[1739561853342,0.55,2744.6,2744.1,35.0]
[1739561853537,3.64391,2744.3,2744.1,35.0]
[1739561853967,7.28793,2744.3,2744.1,35.0]
[1739561854244,3.64404,2744.2,2744.1,35.0]
[1739561854572,7.28793,2744.3,2744.1,35.0]
[1739561854776,3.64391,2744.3,2744.1,35.0]
[1739561854979,3.64404,2744.2,2744.1,35.0]
[1739561855379,4.19404,2744.2,2744.1,35.0]
[1739561855759,7.19404,2744.2,2744.1,35.0]
[1739561857555,3.64347,2744.7,2744.1,39.0152]
[1739561857751,3.64358,2744.6,2744.1,4.0152]
[1739561857972,3.64366,2744.5,2744.1,0.5152]
[1739561858151,4.4574,2744.9,2744.4,35.0]
[1739561858499,3.64339,2744.7,2744.4,35.0]
[1739561858644,3.64339,2744.7,2744.1,4.15938]
[1739561858845,3.64339,2744.7,2744.1,1.68185479]
[1739561859044,3.64339,2744.7,2744.1,0.5152]
[1739561859243,3.64339,2744.7,2743.6,0.47245031]
[1739561859244,3.64338,2744.7,2743.8,0.5152]
[1739561859488,3.64404,2744.2,2743.8,0.5152]
[1739561859648,3.64404,2744.3,2743.8,0.5152]
[1739561860050,0.55,2744.2,2743.5,0.5152]
[1739561860249,3.64465,2743.8,2743.5,0.5152]
[1739561860448,3.64474,2743.7,2743.2,0.5152]
[1739561860761,3.64465,2743.8,2743.3,0.43780179]
[1739561860983,3.6448,2743.7,2743.3,0.43780179]
[1739561861281,3.64497,2743.6,2743.2,0.5152]
[1739561861646,3.64498,2743.5,2743.2,0.5152]
[1739561861847,3.64498,2743.5,2742.8,7.50860789]
[1739561861848,3.64498,2743.5,2742.9,0.5152]
[1739561862262,3.64531,2743.3,2742.9,0.5152]
[1739561862478,3.64531,2743.3,2742.6,0.5152]
[1739561862679,3.64552,2743.1,2742.6,0.5152]
[1739561862882,3.64574,2743.0,2742.6,0.5152]
[1739561863090,0.8142,2743.1,2742.4,0.5152]
[1739561863273,1.3642,2743.4,2742.5,0.416177]
[1739561863449,3.64531,2743.3,2742.5,3.89927503]
[1739561863651,3.64555,2743.1,2742.5,3.86281789]
[1739561864090,3.64555,2743.1,2742.5,7.50911789]
[1739561864289,3.64532,2743.3,2742.6,3.64617]
[1739561864588,3.64541,2743.2,2742.7,0.75089879]
[1739561864790,4.19505,2743.5,2742.9,0.5152]
[1739561864994,3.64478,2743.7,2743.0,3.64564]
[1739561865157,3.64449,2743.9,2743.2,3.64533]
[1739561865485,3.64453,2743.9,2743.3,4.16043]
[1739561865855,3.64423,2744.1,2743.4,3.68153511]
[1739561866050,3.64447,2743.9,2743.4,0.03644511]
[1739561866293,3.64447,2743.9,2743.3,4.16044]
[1739561866462,3.64447,2743.9,2743.4,0.780577]
[1739561866668,3.64482,2743.7,2743.3,0.5152]
[1739561866865,3.64497,2743.6,2743.0,0.5152]
[1739561867471,3.6452,2743.4,2743.0,0.5152]
[1739561867667,3.64489,2743.6,2743.0,0.5152]
[1739561867874,3.64489,2743.6,2743.0,4.16075]
[1739561868060,3.64489,2743.6,2743.1,0.780641]
[1739561868375,3.64463,2743.8,2743.1,4.64345889]
[1739561868595,3.0,2743.7,2743.2,7.32700641]
[1739561868892,4.45822,2744.3,2743.4,3.86281789]
[1739561869091,3.64383,2744.4,2743.8,0.5152]
[1739561869256,4.45779,2744.6,2743.9,0.415986]
[1739561869453,3.64369,2744.5,2744.0,0.03643866]
[1739561869690,3.64369,2744.5,2743.9,0.415986]
[1739561870457,3.64383,2744.4,2743.9,0.415986]
[1739561870818,3.64401,2744.3,2743.9,0.415986]
[1739561871715,3.64383,2744.4,2743.9,4.060426]
[1739561871873,3.64383,2744.4,2744.0,0.4575626]
[1739561872410,3.64407,2744.2,2743.9,0.415986]
[1739561872959,3.64406,2744.2,2743.9,0.415986]
[1739561873208,3.64425,2744.1,2743.8,0.5152]
[1739561873408,4.45776,2744.6,2743.5,0.5152]
[1739561873409,3.64439,2744.0,2743.5,0.5152]
[1739561873802,3.64459,2743.8,2743.5,0.5152]
[1739561874001,0.7794,2744.0,2743.5,0.5152]
[1739561874250,3.64459,2743.8,2743.5,0.5152]
[1739561874451,3.64475,2743.7,2743.2,0.5152]
[1739561874650,3.64487,2743.6,2743.3,0.51586589]
[1739561874951,3.64487,2743.6,2743.2,0.5152]
[1739561875154,3.64505,2743.5,2743.2,0.5152]
[1739561875315,4.1951,2743.5,2743.1,0.780641]
[1739561875516,0.7794,2744.0,2743.0,0.5152]
[1739561875726,3.64478,2743.7,2743.1,3.68193104]
[1739561876255,0.55,2743.6,2743.1,7.54474893]
[1739561876464,0.55,2743.6,2743.1,7.50829789]
[1739561876640,3.64451,2743.9,2743.2,3.64537]
[1739561876840,3.64451,2743.9,2743.3,4.76058679]
[1739561876841,3.64447,2743.9,2743.3,4.76058679]
[1739561877005,7.28903,2743.9,2743.3,1.11536679]
[1739561877205,3.64459,2743.8,2743.3,1.11536679]
[1739561877675,3.6448,2743.7,2743.3,1.11536679]
[1739561877850,3.6448,2743.7,2743.1,3.64548]
[1739561878138,3.64447,2743.9,2743.1,3.64543]
[1739561878139,0.55,2743.8,2743.1,3.64543]
[1739561878476,4.19461,2743.8,2743.1,7.50823789]
[1739561878628,4.19447,2743.9,2743.2,0.80234379]
[1739561878828,4.19447,2743.9,2743.3,0.5152]
[1739561879032,3.64461,2743.8,2743.3,0.5152]
[1739561879246,3.64473,2743.7,2743.3,0.5152]
[1739561879455,3.64473,2743.7,2743.3,1.05415526]
[1739561880064,3.64485,2743.6,2743.3,1.05415526]
[1739561880869,0.55,2744.0,2743.3,0.5152]
[1739561881199,3.64532,2743.3,2743.0,0.5152]
[1739561881627,0.55,2743.4,2743.0,0.5152]
[1739561881830,4.19518,2743.4,2743.0,0.5152]
[1739561882066,0.55,2743.4,2743.0,1.31759079]
[1739561882369,4.19517,2743.4,2743.0,1.31759079]
[1739561882530,3.64527,2743.3,2743.0,1.31759079]
[1739561883567,3.64527,2743.3,2743.0,0.80239079]
[1739561884230,0.55,2743.4,2743.0,0.80239079]
[1739561884881,4.19518,2743.4,2743.0,0.80239079]
[1739561886318,3.64527,2743.3,2743.0,0.80239079]
[1739561887486,4.19518,2743.4,2743.0,0.80239079]
[1739561887686,3.64492,2743.6,2743.0,0.80239079]
[1739561887889,3.64504,2743.5,2743.0,0.80239079]
[1739561888201,0.55,2743.5,2743.1,4.09025508]
[1739561888499,0.55,2743.8,2743.2,0.5152]
[1739561888737,4.14184927,2744.6,2743.2,0.5152]
[1739561888738,6.2125,2744.4,2743.2,0.5152]
[1739561888997,3.64458,2743.8,2743.3,3.64523]
[1739561889167,3.64458,2743.8,2743.4,0.416043]
[1739561889601,3.84452,2743.9,2743.4,0.416043]
[1739561889767,0.2,2743.9,2743.5,3.6449]
[1739561890111,0.2,2743.9,2743.8,3.64458]
[1739561890561,0.2,2743.9,2743.7,3.64463]
[1739561891790,0.2,2743.9,2743.8,3.64458]
[1739561892305,0.2,2743.9,2743.7,3.64463]
[1739561892523,0.2,2743.9,2743.6,0.5152]
[1739561892812,0.2,2743.9,2743.7,4.060698]
[1739561893175,0.2,2743.9,2743.8,4.15978]
[1739561894610,0.2,2743.9,2743.8,7.15978]
[1739561894807,0.2,2743.9,2743.8,6.98970572]
[1739561895014,0.2,2743.9,2743.8,4.15978]
[1739561895174,0.2,2743.9,2743.8,5.56810059]
[1739561896109,0.2,2743.9,2743.8,1.92352059]
[1739561896311,0.2,2743.9,2743.8,0.5152]
[1739561896675,0.2,2743.9,2743.8,4.15978]
[1739561898313,0.2,2743.9,2743.8,0.5152]
[1739561898609,0.2,2743.9,2743.5,4.16009]
[1739561898779,0.2,2743.9,2743.6,3.64478]
[1739561898976,0.2,2743.9,2743.6,1.16676879]
[1739561899181,0.2,2743.9,2743.5,4.16015]
[1739561899406,0.2,2743.9,2743.5,4.16007]
[1739561899801,0.2,2743.9,2743.5,7.80497]
[1739561900009,0.2,2743.9,2743.5,4.16007]
[1739561900204,0.2,2743.9,2743.6,3.64482]
[1739561900405,0.2,2743.9,2743.7,0.780489]
[1739561900611,0.2,2743.9,2743.8,3.64458]
[1739561901821,0.2,2743.9,2743.8,4.15978]
[1739561902009,0.8235,2744.9,2744.4,3.64365]
[1739561902718,0.8235,2745.1,2744.6,3.64345]
[1739561902903,0.8235,2745.1,2744.7,0.0364302]
[1739561903103,0.8235,2745.1,2744.6,4.423681]
[1739561903305,0.8235,2745.1,2744.6,0.780241]
[1739561903619,4.46636,2745.1,2744.6,0.780241]
[1739561904187,0.8235,2745.1,2744.6,0.780241]
[1739561904715,3.64259,2745.3,2744.7,3.64337]
[1739561905021,3.64259,2745.3,2744.8,0.81035411]
[1739561905418,3.8235,2745.4,2744.8,0.81035411]
[1739561905623,0.55,2745.3,2744.7,3.64333]
[1739561906855,0.8235,2745.4,2744.4,4.15896]
[1739561907161,0.8235,2745.4,2744.9,3.64299]
[1739561907292,0.8235,2745.4,2745.0,0.728616]
[1739561907907,3.64228,2745.6,2745.0,0.728616]
[1739561908140,3.0,2745.5,2745.0,0.728616]
[1739561909158,3.0,2745.5,2745.0,4.371566]
[1739561909300,0.55,2745.7,2745.1,38.64275]
[1739561909507,4.44375,2745.8,2745.2,7.48758228]
[1739561909508,0.8018,2745.8,2745.2,7.48758228]
[1739561909833,0.1479025,2745.9,2745.4,3.64237]
[1739561910160,0.1479025,2745.9,2745.7,35.0]
[1739561911327,0.1479025,2745.9,2745.7,38.64205]
[1739561911520,0.1479025,2745.9,2745.8,3.62476439]
[1739561912581,0.1479025,2745.9,2745.5,3.86281789]
[1739561912873,0.1479025,2745.9,2745.8,35.0]
[1739561913216,4.3396925,2745.9,2745.8,35.0]
[1739561915641,0.6979025,2745.9,2745.8,35.0]
[1739561915829,4.3396925,2745.9,2745.8,35.0]
[1739561916035,0.6979025,2745.9,2745.8,35.0]
[1739561916254,4.3396925,2745.9,2745.8,35.0]